bitfinex-derivatives/quotes_BTCF0:USTF0_20250811
["timestamp","ask_amount","ask_price","bid_price","bid_amount"]
[1754898295566,0.63835064,121750.0,121740.0,1.76594702]
[1754898295961,0.63835064,121750.0,121740.0,1.73972702]
[1754898299267,0.63835064,121750.0,121740.0,1.76594702]
[1754898299463,0.63835064,121750.0,121740.0,1.00010702]
[1754898299664,0.63835064,121750.0,121740.0,1.76582702]
[1754898299967,0.63835064,121750.0,121740.0,1.00010702]
[1754898300156,0.63835064,121750.0,121740.0,1.99432621]
[1754898300363,0.63835064,121750.0,121740.0,1.66656743]
[1754898300764,0.63835064,121750.0,121740.0,1.99432621]
[1754898301369,0.63835064,121750.0,121740.0,1.80216135]
[1754898301571,0.63835064,121750.0,121740.0,1.03644135]
[1754898301962,0.63835064,121750.0,121740.0,1.80212135]
[1754898302862,0.62801064,121750.0,121740.0,1.45088427]
[1754898303067,0.62801064,121750.0,121740.0,2.21652427]
[1754898304473,0.10070694,121750.0,121740.0,1.45088427]
[1754898304664,0.06682143,121750.0,121740.0,2.21648427]
[1754898305066,0.06682143,121750.0,121740.0,2.40864913]
[1754898305365,0.14896023,121750.0,121740.0,2.40864913]
[1754898305667,0.14896023,121750.0,121740.0,2.90864913]
[1754898305868,0.0841388,121750.0,121740.0,2.58089035]
[1754898306077,0.1322288,121750.0,121740.0,2.90864913]
[1754898306269,0.1322288,121750.0,121740.0,2.3522515]
[1754898306469,0.5482849,121760.0,121740.0,2.5724587]
[1754898306674,0.60775553,121760.0,121750.0,0.81360359]
[1754898306971,0.60765553,121760.0,121750.0,0.5224188]
[1754898307164,0.60765553,121760.0,121750.0,0.21422379]
[1754898307165,1.66446032,121760.0,121750.0,0.21422379]
[1754898307362,1.66446032,121760.0,121750.0,0.20469308]
[1754898307669,1.66546032,121760.0,121750.0,0.20469308]
[1754898308573,1.71355032,121760.0,121750.0,0.20469308]
[1754898308775,1.71555032,121760.0,121750.0,0.20469308]
[1754898309068,1.71551032,121760.0,121750.0,0.20469308]
[1754898309275,1.01596984,121760.0,121750.0,0.20469308]
[1754898309671,1.78144984,121760.0,121750.0,0.20469308]
[1754898310378,2.14224984,121760.0,121750.0,0.20469308]
[1754898311680,1.37676984,121760.0,121750.0,0.20469308]
[1754898312069,2.14220984,121760.0,121750.0,0.20469308]
[1754898312867,1.01596984,121760.0,121750.0,0.20469308]
[1754898313064,0.72468505,121760.0,121750.0,0.36621198]
[1754898313576,1.49008505,121760.0,121750.0,0.28407308]
[1754898313876,0.72468505,121760.0,121750.0,0.28407308]
[1754898314070,1.78036984,121760.0,121750.0,0.20469308]
[1754898314275,2.14116984,121760.0,121750.0,0.20469308]
[1754898315476,1.37376984,121760.0,121750.0,0.20569308]
[1754898315678,2.13912984,121760.0,121750.0,0.20569308]
[1754898316075,1.84784505,121760.0,121750.0,0.20569308]
[1754898316373,2.13912984,121760.0,121750.0,0.20569308]
[1754898316763,1.37376984,121760.0,121750.0,0.20569308]
[1754898316975,2.13912984,121760.0,121750.0,0.20569308]
[1754898318574,2.13912984,121760.0,121750.0,0.20469308]
[1754898318974,2.13908984,121760.0,121750.0,0.20469308]
[1754898320679,1.37376984,121760.0,121750.0,0.20469308]
[1754898320872,2.13904984,121760.0,121750.0,0.20469308]
[1754898321579,2.43033463,121760.0,121750.0,0.09548308]
[1754898322084,1.58617463,121760.0,121750.0,0.09548308]
[1754898322382,2.35145463,121760.0,121750.0,0.09548308]
[1754898322582,2.35155463,121760.0,121750.0,0.09558308]
[1754898323277,1.76898505,121760.0,121750.0,0.09558308]
[1754898323477,2.35155463,121760.0,121750.0,0.09558308]
[1754898323679,2.06026984,121760.0,121750.0,0.09558308]
[1754898323875,2.06226984,121760.0,121750.0,0.09558308]
[1754898324079,2.06326984,121760.0,121750.0,0.09558308]
[1754898325281,2.06322984,121760.0,121750.0,0.09558308]
[1754898326175,1.29798984,121760.0,121750.0,0.09558308]
[1754898326486,2.06322984,121760.0,121750.0,0.09558308]
[1754898327286,2.11131984,121760.0,121750.0,0.09558308]
[1754898327483,2.11031984,121760.0,121750.0,0.09558308]
[1754898327883,1.34507984,121760.0,121750.0,0.09558308]
[1754898328083,2.11031984,121760.0,121750.0,0.09558308]
[1754898329189,2.10831984,121760.0,121750.0,0.09658308]
[1754898331284,2.10831984,121760.0,121750.0,0.09558308]
[1754898331985,2.10819984,121760.0,121750.0,0.09558308]
[1754898332691,2.39948463,121760.0,121750.0,0.09558308]
[1754898333495,2.10819984,121760.0,121750.0,0.09558308]
[1754898333688,2.40048463,121760.0,121750.0,0.09558308]
[1754898333889,2.40248463,121760.0,121750.0,0.08728308]
[1754898334289,0.4628056,121740.0,121730.0,0.3567174]
[1754898334486,0.6271267,121730.0,121720.0,0.31283]
[1754898334692,0.91841149,121730.0,121720.0,0.31283]
[1754898334993,0.91841149,121730.0,121720.0,0.48410212]
[1754898335194,0.91841149,121730.0,121720.0,0.56623427]
[1754898335389,0.91841149,121730.0,121720.0,0.56629185]
[1754898335589,0.91851149,121730.0,121720.0,0.56639185]
[1754898335790,0.6272267,121730.0,121720.0,0.56639185]
[1754898336494,0.91851149,121730.0,121720.0,0.56639185]
[1754898336695,0.91851149,121730.0,121720.0,0.52066185]
[1754898336898,1.68363149,121730.0,121720.0,0.52066185]
[1754898337190,1.68363149,121730.0,121720.0,0.57038185]
[1754898337398,1.3923467,121730.0,121720.0,0.52066185]
[1754898337594,1.3923467,121730.0,121720.0,0.57038185]
[1754898338098,1.3923467,121730.0,121720.0,0.57138185]
[1754898338990,1.3923467,121730.0,121720.0,0.56938185]
[1754898339196,1.3923467,121730.0,121720.0,0.57038185]
[1754898339400,1.68363149,121730.0,121720.0,0.57038185]
[1754898339897,1.68363149,121730.0,121720.0,0.56938185]
[1754898342090,1.3923467,121730.0,121720.0,0.56938185]
[1754898343094,0.6272267,121730.0,121720.0,0.56938185]
[1754898343302,1.3923067,121730.0,121720.0,0.56938185]
[1754898343496,1.68359149,121730.0,121720.0,0.51966185]
[1754898343899,2.04439149,121730.0,121720.0,0.51966185]
[1754898345998,2.04439149,121730.0,121720.0,0.20683185]
[1754898346204,2.04435149,121730.0,121720.0,0.20683185]
[1754898346606,1.27931149,121730.0,121720.0,0.20683185]
[1754898346800,2.04435149,121730.0,121720.0,0.30684185]
[1754898347703,0.9880267,121730.0,121720.0,0.52064185]
[1754898347903,1.7530667,121730.0,121720.0,0.57036185]
[1754898349903,0.9880267,121730.0,121720.0,0.57036185]
[1754898350109,1.27931149,121730.0,121720.0,0.38711185]
[1754898350304,2.04431149,121730.0,121720.0,0.20683185]
[1754898350906,1.27931149,121730.0,121720.0,0.20683185]
[1754898351402,2.04431149,121730.0,121720.0,0.20683185]
[1754898352004,2.04427149,121730.0,121720.0,0.20683185]
[1754898352812,1.27931149,121730.0,121720.0,0.20683185]
[1754898353003,2.04427149,121730.0,121720.0,0.20683185]
[1754898353408,2.04427149,121730.0,121720.0,0.39899671]
[1754898354507,0.9880267,121730.0,121720.0,0.20683185]
[1754898354711,0.9880267,121730.0,121720.0,0.52064185]
[1754898354912,0.9880267,121730.0,121720.0,0.35888185]
[1754898355112,1.7529867,121730.0,121720.0,0.57036185]
[1754898356613,0.9058687,121730.0,121720.0,0.44104045]
[1754898356815,0.4601818,121730.0,121720.0,1.30460524]
[1754898357016,0.4601818,121730.0,121720.0,1.22244664]
[1754898357216,1.2251018,121730.0,121720.0,1.30460524]
[1754898358608,1.2251018,121730.0,121720.0,1.01332045]
[1754898358916,1.2251018,121730.0,121720.0,0.56763185]
[1754898359109,1.87718659,121730.0,121720.0,0.20683185]
[1754898359917,1.87714659,121730.0,121720.0,0.30684185]
[1754898360315,1.87714659,121730.0,121720.0,0.20683185]
[1754898361715,1.11226659,121730.0,121720.0,0.20683185]
[1754898361915,1.87714659,121730.0,121720.0,0.20683185]
[1754898362116,1.5858618,121730.0,121720.0,0.20683185]
[1754898362414,1.87714659,121730.0,121720.0,0.20683185]
[1754898362820,0.75146659,121730.0,121720.0,0.20683185]
[1754898363116,1.51630659,121730.0,121720.0,0.30684185]
[1754898363616,1.87710659,121730.0,121720.0,0.30684185]
[1754898364117,1.51630659,121730.0,121720.0,0.30684185]
[1754898364520,1.87710659,121730.0,121720.0,0.30684185]
[1754898365114,1.51630659,121730.0,121720.0,0.33894185]
[1754898365307,1.87706659,121730.0,121720.0,0.33894185]
[1754898365808,0.4601818,121730.0,121720.0,0.57030185]
[1754898366014,1.2249818,121730.0,121720.0,0.57030185]
[1754898366413,1.2249818,121730.0,121720.0,0.86158664]
[1754898367016,1.2249818,121730.0,121720.0,0.65246045]
[1754898367211,0.4601818,121730.0,121720.0,1.01326045]
[1754898367519,1.2249818,121730.0,121720.0,1.01326045]
[1754898367920,1.2249818,121730.0,121720.0,1.20542531]
[1754898368718,1.2249418,121730.0,121720.0,1.20542531]
[1754898369116,1.2249418,121730.0,121720.0,1.01326045]
[1754898369318,0.4601818,121730.0,121720.0,1.01326045]
[1754898369516,1.2249018,121730.0,121720.0,0.93110185]
[1754898370124,1.2249018,121730.0,121720.0,0.57030185]
[1754898371522,1.51618659,121730.0,121720.0,0.20683185]
[1754898373025,1.51618659,121730.0,121720.0,0.30748185]
[1754898374129,1.51618659,121730.0,121720.0,0.33942185]
[1754898375829,1.51606659,121730.0,121720.0,0.33942185]
[1754898376128,0.75146659,121730.0,121720.0,0.33942185]
[1754898376427,1.51606659,121730.0,121720.0,0.33942185]
[1754898376922,1.51606659,121730.0,121720.0,0.23877185]
[1754898377123,1.51606659,121730.0,121720.0,0.56349185]
[1754898377322,1.2247818,121730.0,121720.0,0.56349185]
[1754898380421,1.2247818,121730.0,121720.0,0.75545033]
[1754898381629,1.2247818,121730.0,121720.0,0.56349185]
[1754898382027,1.51606659,121730.0,121720.0,0.20683185]
[1754898382429,1.2247818,121730.0,121720.0,0.20683185]
[1754898382631,1.51606659,121730.0,121720.0,0.20683185]
[1754898383828,1.87670659,121730.0,121720.0,0.20683185]
[1754898386525,1.51590659,121730.0,121720.0,0.20683185]
[1754898386826,1.2245418,121730.0,121720.0,0.30748185]
[1754898387324,1.51582659,121730.0,121720.0,0.30748185]
[1754898387728,1.2245418,121730.0,121720.0,0.30748185]
[1754898388426,1.51582659,121730.0,121720.0,0.30748185]
[1754898388631,1.2245418,121730.0,121720.0,0.30748185]
[1754898388827,1.51582659,121730.0,121720.0,0.30748185]
[1754898390942,1.51582659,121730.0,121720.0,0.20683185]
[1754898392541,1.51582659,121730.0,121720.0,0.30442185]
[1754898392938,1.51582659,121730.0,121720.0,0.33636185]
[1754898393343,0.4601818,121730.0,121720.0,0.46284185]
[1754898393640,0.4601818,121730.0,121720.0,1.29467484]
[1754898393844,0.0001,121730.0,121720.0,1.58595963]
[1754898394043,0.0001,121730.0,121720.0,1.67599985]
[1754898394235,0.0001,121730.0,121720.0,2.60450385]
[1754898394436,0.0001,121730.0,121720.0,1.84030385]
[1754898394639,0.0822514,121730.0,121720.0,2.44019985]
[1754898394838,0.0822514,121730.0,121720.0,2.14891506]
[1754898395144,0.0822514,121730.0,121720.0,2.64891506]
[1754898395342,0.0822514,121730.0,121720.0,2.56675686]
[1754898395542,0.4417314,121730.0,121720.0,2.07655332]
[1754898396544,0.4417314,121730.0,121720.0,1.57655332]
[1754898396843,0.4417314,121730.0,121720.0,1.38471506]
[1754898397049,0.4417314,121730.0,121720.0,1.57653435]
[1754898398753,0.4417314,121730.0,121720.0,1.28524956]
[1754898399057,0.4458314,121730.0,121720.0,1.28524976]
[1754898399350,0.4458314,121730.0,121720.0,1.09343047]
[1754898399949,0.4458314,121730.0,121720.0,1.38471526]
[1754898400451,0.4458314,121730.0,121720.0,1.09343047]
[1754898400646,0.4458314,121730.0,121720.0,1.28524976]
[1754898401855,0.4458314,121730.0,121720.0,1.57653455]
[1754898402057,1.2097514,121730.0,121720.0,1.57653455]
[1754898402960,1.2097514,121730.0,121720.0,1.38471526]
[1754898404453,1.2097514,121730.0,121720.0,1.09343047]
[1754898404854,1.2097114,121730.0,121720.0,1.09343047]
[1754898405349,1.2097114,121730.0,121720.0,0.65767207]
[1754898405555,1.50095619,121730.0,121720.0,0.20683185]
[1754898406360,1.2096714,121730.0,121720.0,0.20683185]
[1754898407960,1.50095619,121730.0,121720.0,0.20683185]
[1754898408757,1.2096714,121730.0,121720.0,0.20683185]
[1754898409154,1.50095619,121730.0,121720.0,0.20683185]
[1754898410150,0.73711619,121730.0,121720.0,0.20683185]
[1754898410353,1.50087619,121730.0,121720.0,0.20683185]
[1754898410755,1.86167619,121730.0,121720.0,0.20683185]
[1754898411161,0.8066314,121730.0,121720.0,0.20683185]
[1754898411363,1.86167619,121730.0,121720.0,0.20683185]
[1754898411762,1.09791619,121730.0,121720.0,0.20683185]
[1754898412057,1.86167619,121730.0,121720.0,0.20683185]
[1754898412262,1.5703914,121730.0,121720.0,0.20683185]
[1754898412462,0.8066314,121730.0,121720.0,0.20683185]
[1754898412662,1.86167619,121730.0,121720.0,0.20683185]
[1754898416464,1.5703914,121730.0,121720.0,0.20683185]
[1754898416665,1.86167619,121730.0,121720.0,0.20683185]
[1754898416866,1.09791619,121730.0,121720.0,0.20683185]
[1754898417067,1.86159619,121730.0,121720.0,0.20683185]
[1754898417564,1.5703114,121730.0,121720.0,0.20683185]
[1754898417764,1.86159619,121730.0,121720.0,0.20683185]
[1754898420167,1.09791619,121730.0,121720.0,0.20683185]
[1754898420363,1.86155619,121730.0,121720.0,0.07579729]
[1754898420568,1.86155619,121730.0,121720.0,0.19977416]
[1754898421070,1.5702714,121730.0,121720.0,0.12513445]
[1754898421271,1.86155619,121730.0,121720.0,0.12513445]
[1754898421875,1.09791619,121730.0,121720.0,0.12513445]
[1754898422070,1.86151619,121730.0,121720.0,0.12513445]
[1754898422975,1.5702314,121730.0,121720.0,0.12513445]
[1754898423275,1.5702314,121730.0,121720.0,0.22211445]
[1754898423479,1.86151619,121730.0,121720.0,0.30426684]
[1754898423674,1.09791619,121730.0,121720.0,0.20728684]
[1754898424168,1.5739514,121730.0,121720.0,0.20728684]
[1754898424368,1.86523619,121730.0,121720.0,0.20728684]
[1754898424771,1.09791619,121730.0,121720.0,0.20728684]
[1754898424976,1.86523619,121730.0,121720.0,0.20728684]
[1754898425372,1.09791619,121730.0,121720.0,0.20728684]
[1754898425777,1.86535619,121730.0,121720.0,0.20728684]
[1754898428381,1.86495619,121730.0,121720.0,0.20728684]
[1754898432283,0.2821219,121700.0,121690.0,0.83794929]
[1754898432489,1.50384669,121700.0,121690.0,0.85803929]
[1754898432684,1.2126419,121700.0,121690.0,0.46412419]
[1754898432875,0.73672669,121700.0,121690.0,0.31463419]
[1754898433080,1.50408669,121700.0,121690.0,0.39678658]
[1754898433276,1.86500669,121700.0,121690.0,0.20502814]
[1754898433485,1.86510669,121700.0,121690.0,0.20512814]
[1754898433683,1.86510669,121700.0,121690.0,0.20812814]
[1754898433884,1.5738219,121700.0,121690.0,0.30230814]
[1754898434086,1.86510669,121700.0,121690.0,0.39735814]
[1754898434391,1.86510669,121700.0,121690.0,0.40235814]
[1754898435278,1.86510669,121700.0,121690.0,0.34060814]
[1754898435689,1.09762669,121700.0,121690.0,0.34060814]
[1754898435988,1.86486669,121700.0,121690.0,0.21312814]
[1754898438884,1.5735819,121700.0,121690.0,0.21312814]
[1754898439085,1.86486669,121700.0,121690.0,0.21312814]
[1754898439683,1.5735819,121700.0,121690.0,0.21312814]
[1754898440190,1.86486669,121700.0,121690.0,0.21312814]
[1754898441891,1.09762669,121700.0,121690.0,0.20200627]
[1754898442089,1.09762669,121700.0,121690.0,0.09294791]
[1754898442395,0.4454621,121670.0,121660.0,1.00757479]
[1754898442594,1.2124221,121670.0,121660.0,1.00757479]
[1754898442797,1.2124221,121670.0,121660.0,1.21380638]
[1754898443090,1.23373488,121670.0,121660.0,0.56172159]
[1754898443290,0.46677488,121670.0,121660.0,0.56181803]
[1754898443486,1.23363488,121670.0,121660.0,0.56191803]
[1754898443681,1.23363488,121670.0,121660.0,0.85320282]
[1754898444492,1.23463488,121670.0,121660.0,0.85320282]
[1754898446389,1.23419488,121670.0,121660.0,0.85320282]
[1754898447183,0.46787488,121670.0,121660.0,0.56191803]
[1754898447494,1.23391488,121670.0,121660.0,0.93540172]
[1754898447693,1.29973223,121670.0,121660.0,0.93540172]
[1754898449288,1.29973223,121670.0,121660.0,0.56191803]
[1754898449490,1.29973223,121670.0,121660.0,0.64411693]
[1754898449695,1.29973223,121670.0,121660.0,0.93540172]
[1754898450603,0.28615223,121670.0,121660.0,0.93540172]
[1754898451296,1.21918223,121670.0,121660.0,0.93540172]
[1754898452000,1.21918223,121670.0,121660.0,0.93640172]
[1754898453500,1.26722223,121670.0,121660.0,0.93740172]
[1754898455097,1.26722223,121670.0,121660.0,0.64611693]
[1754898455300,1.29825223,121670.0,121660.0,0.93740172]
[1754898455688,1.29781223,121670.0,121660.0,0.93740172]
[1754898457705,0.53269223,121670.0,121660.0,0.93740172]
[1754898457908,1.29909223,121670.0,121660.0,0.93740172]
[1754898458318,1.29885223,121670.0,121660.0,1.29820172]
[1754898458719,1.29885223,121670.0,121660.0,1.00691693]
[1754898458913,0.53269223,121670.0,121660.0,1.29820172]
[1754898459110,1.29889223,121670.0,121660.0,1.29820172]
[1754898459713,0.53269223,121670.0,121660.0,1.29820172]
[1754898459912,1.29877223,121670.0,121660.0,1.29820172]
[1754898460421,1.29857223,121670.0,121660.0,1.29820172]
[1754898460816,1.29845223,121670.0,121660.0,1.29820172]
[1754898462117,1.29845223,121670.0,121660.0,0.93740172]
[1754898462318,0.53269223,121670.0,121660.0,0.93740172]
[1754898462521,1.29837223,121670.0,121660.0,0.93740172]
[1754898462819,1.29837223,121670.0,121660.0,1.29820172]
[1754898463521,1.29837223,121670.0,121660.0,0.93640172]
[1754898463721,1.29837223,121670.0,121660.0,0.93740172]
[1754898464121,0.53269223,121670.0,121660.0,0.93640172]
[1754898464420,1.29861223,121670.0,121660.0,0.93740172]
[1754898464621,1.29861223,121670.0,121660.0,1.29820172]
[1754898465215,1.29901223,121670.0,121660.0,1.29820172]
[1754898465426,0.53269223,121670.0,121660.0,1.29820172]
[1754898465622,1.29913223,121670.0,121660.0,1.29820172]
[1754898465918,0.53269223,121670.0,121660.0,1.29820172]
[1754898466124,1.29913223,121670.0,121660.0,1.29820172]
[1754898466721,1.29913223,121670.0,121660.0,1.29620172]
[1754898467023,1.30013223,121670.0,121660.0,1.29620172]
[1754898467520,0.53369223,121670.0,121660.0,1.29620172]
[1754898467722,1.30005223,121670.0,121660.0,1.29620172]
[1754898468822,0.31766223,121670.0,121660.0,1.29620172]
[1754898469018,0.06691735,121670.0,121660.0,1.38752198]
[1754898469220,0.06691735,121670.0,121660.0,2.31774598]
[1754898469714,0.06691735,121670.0,121660.0,2.31782598]
[1754898469915,0.06691735,121670.0,121660.0,2.02754119]
[1754898470113,0.06691735,121670.0,121660.0,2.05290598]
[1754898470314,0.06691735,121670.0,121660.0,2.81882598]
[1754898470618,0.06591735,121670.0,121660.0,2.82182598]
[1754898470819,0.06591735,121670.0,121660.0,2.82382598]
[1754898471023,0.06591735,121670.0,121660.0,2.24983122]
[1754898471226,0.14810935,121670.0,121660.0,3.01635122]
[1754898472223,0.06591735,121670.0,121660.0,2.82442598]
[1754898472525,0.06591735,121670.0,121660.0,2.05790598]
[1754898472724,0.06591735,121670.0,121660.0,2.82438598]
[1754898472926,0.06591735,121670.0,121660.0,2.82406598]
[1754898473428,0.06591735,121670.0,121660.0,3.01599122]
[1754898473631,0.14810935,121670.0,121660.0,3.01599122]
[1754898474529,0.14810935,121670.0,121660.0,2.82406598]
[1754898475622,0.06591735,121670.0,121660.0,2.65968198]
[1754898476033,0.06591735,121670.0,121660.0,2.84842464]
[1754898476234,0.06591735,121670.0,121660.0,2.84542464]
[1754898476531,0.06591735,121670.0,121660.0,2.08526464]
[1754898476725,0.06591735,121670.0,121660.0,2.85170464]
[1754898476925,0.14810905,121670.0,121660.0,2.08526464]
[1754898477124,0.14810905,121670.0,121660.0,1.89352198]
[1754898477330,0.14810905,121670.0,121660.0,1.89342198]
[1754898477331,0.09810905,121670.0,121660.0,1.89342198]
[1754898477536,0.09810905,121670.0,121660.0,1.89242198]
[1754898477724,0.24630023,121680.0,121660.0,2.69896838]
[1754898477931,0.52086203,121680.0,121670.0,1.08549659]
[1754898478130,1.28682203,121680.0,121670.0,1.08549659]
[1754898478330,1.28682203,121680.0,121670.0,1.00962272]
[1754898478632,1.28692203,121680.0,121670.0,1.38320041]
[1754898479033,1.2771732,121680.0,121670.0,1.38320041]
[1754898479433,1.29660315,121680.0,121670.0,1.38320041]
[1754898479829,1.39228315,121680.0,121670.0,1.38320041]
[1754898480128,0.62632315,121680.0,121670.0,1.38420041]
[1754898480834,0.69178665,121680.0,121670.0,1.57594307]
[1754898481133,0.69178665,121680.0,121670.0,1.57694307]
[1754898481929,0.69178665,121680.0,121670.0,1.38520041]
[1754898482832,1.45730665,121680.0,121670.0,1.38520041]
[1754898483434,1.45730665,121680.0,121670.0,1.02440041]
[1754898483634,1.45730665,121680.0,121670.0,1.09391562]
[1754898483835,1.45730665,121680.0,121670.0,0.84667779]
[1754898484036,1.45730665,121680.0,121670.0,1.00101779]
[1754898484235,1.45730665,121680.0,121670.0,1.29230258]
[1754898485236,1.45722665,121680.0,121670.0,1.29230258]
[1754898485639,1.45722665,121680.0,121670.0,1.48404524]
[1754898486136,0.69178665,121680.0,121670.0,1.48404524]
[1754898486334,1.45698665,121680.0,121670.0,1.48404524]
[1754898486534,1.45698665,121680.0,121670.0,1.48304524]
[1754898486735,1.45798665,121680.0,121670.0,1.48304524]
[1754898487738,1.45698665,121680.0,121670.0,1.48404524]
[1754898488133,1.45698665,121680.0,121670.0,1.29230258]
[1754898489143,1.45698665,121680.0,121670.0,1.13796258]
[1754898489343,0.69178665,121680.0,121670.0,1.48551524]
[1754898489536,1.74767144,121680.0,121670.0,0.39854865]
[1754898489843,1.74751144,121680.0,121670.0,0.39854865]
[1754898490240,1.45622665,121680.0,121670.0,0.39854865]
[1754898490542,1.45622665,121680.0,121670.0,0.44517865]
[1754898490743,1.45622665,121680.0,121670.0,0.44417865]
[1754898491439,1.45622665,121680.0,121670.0,0.44317865]
[1754898491641,1.45622665,121680.0,121670.0,0.25243599]
[1754898491836,0.69178665,121680.0,121670.0,0.20580599]
[1754898492142,1.45610665,121680.0,121670.0,0.63896769]
[1754898492336,1.45610665,121680.0,121670.0,0.55677599]
[1754898492938,1.45610665,121680.0,121670.0,0.63896769]
[1754898493440,1.45610665,121680.0,121670.0,0.44568599]
[1754898493743,1.45610665,121680.0,121670.0,0.44468599]
[1754898493943,1.45810665,121680.0,121670.0,0.44468599]
[1754898494842,1.45710665,121680.0,121670.0,0.44468599]
[1754898496639,1.74839144,121680.0,121670.0,0.35062599]
[1754898496838,2.10919144,121680.0,121670.0,0.25143599]
[1754898498143,1.74839144,121680.0,121670.0,0.25143599]
[1754898498545,1.74839144,121680.0,121670.0,0.20480599]
[1754898500649,2.10919144,121680.0,121670.0,0.20480599]
[1754898503652,1.63615623,121680.0,121670.0,0.0822929]
[1754898503953,2.10923144,121680.0,121670.0,0.0822929]
[1754898504255,2.40051623,121680.0,121670.0,0.0822929]
[1754898504457,2.10923144,121680.0,121670.0,0.0822929]
[1754898505858,1.34487144,121680.0,121670.0,0.0822929]
[1754898506059,2.10919144,121680.0,121670.0,0.0822929]
[1754898506751,2.10923144,121680.0,121670.0,0.0822929]
[1754898510561,1.81794665,121680.0,121670.0,0.0822929]
[1754898510756,2.10923144,121680.0,121670.0,0.0822929]
[1754898512454,1.34487144,121680.0,121670.0,0.0822929]
[1754898512652,2.10919144,121680.0,121670.0,0.0822929]
[1754898513659,1.81790665,121680.0,121670.0,0.0822929]
[1754898513865,1.34487144,121680.0,121670.0,0.3221729]
[1754898514064,2.10919144,121680.0,121670.0,0.3221729]
[1754898514357,1.34487144,121680.0,121670.0,0.3221729]
[1754898514557,2.10919144,121680.0,121670.0,0.3221729]
[1754898514762,1.81790665,121680.0,121670.0,0.2281129]
[1754898514952,2.10919144,121680.0,121670.0,0.2281129]
[1754898516363,1.81790665,121680.0,121670.0,0.1604729]
[1754898516662,2.10919144,121680.0,121670.0,0.1289229]
[1754898517060,2.10919144,121680.0,121670.0,0.0822929]
[1754898518161,0.4341496,121670.0,121660.0,0.17532644]
[1754898518361,0.72543439,121670.0,121660.0,0.17532644]
[1754898518662,1.08623439,121670.0,121660.0,0.38014736]
[1754898519071,0.7949496,121670.0,121660.0,0.38014736]
[1754898519263,1.08633439,121670.0,121660.0,0.38024736]
[1754898519466,0.7950496,121670.0,121660.0,0.38124736]
[1754898519660,1.85061439,121670.0,121660.0,0.38124736]
[1754898519963,1.85065439,121670.0,121660.0,0.20601736]
[1754898520561,1.85065439,121670.0,121660.0,0.25384736]
[1754898520761,1.85065439,121670.0,121660.0,0.28654736]
[1754898520955,1.85065439,121670.0,121660.0,0.38224736]
[1754898521161,1.85065439,121670.0,121660.0,0.38124736]
[1754898521362,1.85165439,121670.0,121660.0,0.38124736]
[1754898521563,1.85165439,121670.0,121660.0,0.38024736]
[1754898522471,1.85165439,121670.0,121660.0,0.28454736]
[1754898522670,1.85165439,121670.0,121660.0,0.25184736]
[1754898525474,1.85165439,121670.0,121660.0,0.44541736]
[1754898526573,1.85165439,121670.0,121660.0,0.28454736]
[1754898526871,1.85165439,121670.0,121660.0,0.25184736]
[1754898530381,1.88866885,121670.0,121660.0,0.20501736]
[1754898532874,1.12434885,121670.0,121660.0,0.20501736]
[1754898533185,1.88866885,121670.0,121660.0,0.12283918]
[1754898533673,0.09302,121640.0,121630.0,0.39651266]
[1754898533977,1.52679065,121640.0,121630.0,0.79898387]
[1754898534181,1.1984914,121640.0,121630.0,0.55295789]
[1754898535069,1.1984914,121640.0,121630.0,0.55895789]
[1754898535272,1.1985914,121640.0,121630.0,0.55905789]
[1754898535467,1.1985914,121640.0,121630.0,0.21175789]
[1754898535673,1.1985914,121640.0,121630.0,0.46335789]
[1754898535974,0.72618155,121640.0,121630.0,0.54847895]
[1754898536176,0.72618155,121640.0,121630.0,0.64417895]
[1754898536478,1.1985514,121640.0,121630.0,0.75107895]
[1754898537175,1.1985514,121640.0,121630.0,0.55905789]
[1754898539979,0.72618155,121640.0,121630.0,0.55905789]
[1754898540178,1.49046155,121640.0,121630.0,0.55905789]
[1754898540578,0.72618155,121640.0,121630.0,0.45215789]
[1754898540779,1.49050155,121640.0,121630.0,0.35645789]
[1754898540979,1.49050155,121640.0,121630.0,0.21175789]
[1754898542279,1.49050155,121640.0,121630.0,0.25858789]
[1754898542474,1.49050155,121640.0,121630.0,0.21175789]
[1754898542682,1.49050155,121640.0,121630.0,0.08837327]
[1754898543182,1.1985914,121640.0,121630.0,0.08837327]
[1754898543381,1.49050155,121640.0,121630.0,0.13520327]
[1754898544086,1.85130155,121640.0,121630.0,0.13520327]
[1754898545081,1.85130155,121640.0,121630.0,0.26360327]
[1754898545286,1.85134155,121640.0,121630.0,0.08837327]
[1754898545581,1.85134155,121640.0,121630.0,0.32877327]
[1754898546985,1.85134155,121640.0,121630.0,0.23307327]
[1754898547181,1.85134155,121640.0,121630.0,0.16790327]
[1754898547586,1.85134155,121640.0,121630.0,0.13520327]
[1754898547886,1.5594314,121640.0,121630.0,0.26639327]
[1754898548082,1.85134155,121640.0,121630.0,0.33066327]
[1754898550688,0.2224214,121640.0,121630.0,0.40276886]
[1754898550882,1.2007314,121640.0,121630.0,0.85607901]
[1754898551083,0.72824155,121640.0,121630.0,0.56416886]
[1754898551292,0.72824155,121640.0,121630.0,0.51736886]
[1754898551486,1.49260155,121640.0,121630.0,0.51736886]
[1754898551992,1.08904155,121640.0,121630.0,0.21183886]
[1754898552183,1.85340155,121640.0,121630.0,0.21183886]
[1754898553390,1.85344155,121640.0,121630.0,0.21183886]
[1754898555092,1.85340155,121640.0,121630.0,0.21183886]
[1754898556292,1.08904155,121640.0,121630.0,0.21183886]
[1754898556600,1.5614914,121640.0,121630.0,0.26015886]
[1754898556792,1.85340155,121640.0,121630.0,0.21183886]
[1754898557594,1.5154114,121640.0,121630.0,0.21183886]
[1754898557794,1.49260155,121640.0,121630.0,0.26015886]
[1754898558097,1.49260155,121640.0,121630.0,0.45561886]
[1754898558285,1.85340155,121640.0,121630.0,0.45561886]
[1754898558486,1.49260155,121640.0,121630.0,0.45561886]
[1754898558691,1.85340155,121640.0,121630.0,0.45561886]
[1754898558997,1.49260155,121640.0,121630.0,0.45561886]
[1754898559693,1.85340155,121640.0,121630.0,0.45561886]
[1754898559900,1.85340155,121640.0,121630.0,0.64763992]
[1754898560200,1.85340155,121640.0,121630.0,0.54798992]
[1754898560405,1.41707015,121640.0,121630.0,0.45207992]
[1754898560592,1.49928155,121640.0,121630.0,0.45207992]
[1754898560790,0.73492155,121640.0,121630.0,0.45207992]
[1754898560995,1.58275155,121640.0,121630.0,0.45207992]
[1754898561195,1.58275155,121640.0,121630.0,0.26005886]
[1754898561501,1.58275155,121640.0,121630.0,0.20873886]
[1754898561704,1.58285155,121640.0,121630.0,0.20883886]
[1754898561999,1.58285155,121640.0,121630.0,0.25715886]
[1754898562401,1.67834155,121640.0,121630.0,0.25415886]
[1754898563995,1.67834155,121640.0,121630.0,0.20583886]
[1754898564201,1.67834155,121640.0,121630.0,0.19694645]
[1754898565203,1.67834155,121640.0,121630.0,0.24535004]
[1754898565700,1.3864314,121640.0,121630.0,0.19703004]
[1754898565905,1.67834155,121640.0,121630.0,0.09921745]
[1754898566205,1.67834155,121640.0,121630.0,0.00222667]
[1754898566500,0.2601784,121630.0,121620.0,0.24034106]
[1754898566695,0.55208855,121630.0,121620.0,0.24034106]
[1754898566896,0.6083587,121630.0,121620.0,0.4455088]